Cogmind - Beta 14 @@@ ROGUE MODE // 2024.09.18 @ 12:48:57 Player: Dull Result: Destroyed by BD-QU3(R) with Subdweller Beam Cannon Performance ------------- Evolutions (0) 0 Regions Visited (3) 600 Robots Destroyed (37) 185 Value Destroyed (804) 804 Prototype IDs (0) 0 Alien Tech Used (0) 0 Bonus (0) 0 TOTAL SCORE: 1589 Bonus ------- None Cogmind --------- Core Integrity 0/250 Matter 297/300 Energy 250/250 System Corruption 0% Temperature Cool (9) Movement Core (1550) Ox30 Location -10/Subcaves Parts ------- > --- POWER (1) -------- Ion Engine > --- PROPULSION (2) --- (None) > --- UTILITY (2) ------ Huge Storage Unit > --- WEAPON (2) ------- Subdweller Laser Subdweller Machine Gun > --- INVENTORY (25) --- Ion Engine Ion Engine Subdweller Power Source Subdweller Power Source Light Treads Light Treads Wheel Wheel Heat Sink Improved Heat Sink Disposable Heat Sink Large Matter Pod (150) High-capacity Matter Pod (200) Experimental Sensor Array Improved Terrain Scanner Tractor Beam Medium Laser Medium Laser Subdweller Laser Subdweller Laser Light Assault Rifle Barrage Gun Grenade Launcher Subdweller Shrapnel Launcher Mining Laser Peak State ------------ > --- POWER ------------ Ion Engine > --- PROPULSION ------- Light Treads Light Treads > --- UTILITY ---------- Huge Storage Unit Improved Terrain Scanner > --- WEAPON ----------- Subdweller Laser Barrage Gun > --- INVENTORY -------- Ion Engine Ion Engine Ion Engine Subdweller Power Source Light Treads Light Treads Wheel Wheel Heat Sink Improved Heat Sink Large Matter Pod High-capacity Matter Pod Experimental Sensor Array Light Armor Plating Tractor Beam Medium Laser Medium Laser Small Laser Subdweller Laser Light Assault Rifle Subdweller Machine Gun Subdweller Machine Gun Grenade Launcher Subdweller Shrapnel Launcher Mining Laser [Rating: 16] Favorites ----------- Power Ion Engine Engine Ion Engine Propulsion Light Treads Treads Light Treads Leg Aluminum Leg Utility Huge Storage Unit Device Improved Terrain Scanner Storage Huge Storage Unit Protection Light Armor Plating Weapon Light Assault Rifle Energy Gun Subdweller Laser Ballistic Gun Light Assault Rifle Launcher Grenade Launcher Special Weapon Mining Laser Build | -11 -10 -10 -10 ------- Run | Yrd Mat Min Sub Slots Evolved . | . . . . Power . | . . . . Propulsion . | . . . . Utility . | . . . . Weapon . | . . . . Parts Attached 35 | 4 11 5 15 Power 5 | . 2 1 2 Engine 5 | . 2 1 2 Core . | . . . . Reactor . | . . . . Propulsion 5 | 2 3 . . Treads 5 | 2 3 . . Leg . | . . . . Wheel . | . . . . Hover . | . . . . Flight . | . . . . Utility 8 | 1 4 1 2 Device 2 | 1 . . 1 Storage 3 | . 3 . . Processor . | . . . . Hackware . | . . . . Protection 3 | . 1 1 1 Artifact . | . . . . Weapon 17 | 1 2 3 11 Energy Gun 3 | 1 . 1 1 Energy Cannon . | . . . . Ballistic Gun 9 | . 1 1 7 Ballistic Cannon . | . . . . Launcher 2 | . 1 1 . Special Weapon 3 | . . . 3 Impact Weapon . | . . . . Slashing Weapon . | . . . . Piercing Weapon . | . . . . Special Melee Weapon . | . . . . Unidentified Prototypes . | . . . . Parts Lost 6 | . 1 2 3 Power 2 | . 1 1 . Propulsion 2 | . . . 2 Utility 2 | . . 1 1 Weapon . | . . . . Highest Loss Streak 3 | . 1 2 3 To Critical Strikes . | . . . . Average Slot Usage (%) 99 | . 99 99 99 Engine 13 | . 13 13 14 Treads 27 | . 27 28 27 Device 2 | . 2 . 4 Storage 14 | . 14 14 14 Protection 11 | . 11 13 9 Energy Gun 13 | . 14 11 14 Ballistic Gun 13 | . 13 13 13 Peak Build Rating 16 | 9 10 11 16 Average Rating 11 | 7 8 10 14 On Entrance 8 | 6 9 9 11 Naked Turns . | . . . . Heaviest Build 96 | 11 90 92 96 Greatest Support 40 | 40 40 40 40 Greatest Overweight (x) 2 | . 2 2 2 Average Overweight (x) 1 | . . 2 2 Largest Inventory Capacity 25 | 8 25 25 25 Average Capacity 23 | 8 19 25 25 Most Carried 25 | 6 20 24 25 Average Carried 21 | 4 14 22 24 Final Capacity 25 | 8 25 25 25 Final Carried 25 | 3 20 24 25 Class Distribution -------------------- 100% | Mutant Dominant Class ---------------- Mutant | -10/Materials Mutant | -10/Mines Mutant | -10/Subcaves Resources | -11 -10 -10 -10 ----------- Run | Yrd Mat Min Sub Matter Collected 1191 | 225 472 299 195 Remotely . | . . . . Salvage Created 1149 | 63 555 144 387 Parts 87 | 5 37 18 27 Haulers Intercepted 1 | . 1 . . Recyclers Shooed 2 | 1 . 1 . Parts Field Recycled . | . . . . Retrieved Matter . | . . . . Parts Self-Destructed 12 | . . . 12 Prevented . | . . . . Kills | -11 -10 -10 -10 ------- Run | Yrd Mat Min Sub Combat Hostiles Destroyed 30 | . 13 11 6 Guns 23 | . 11 6 6 AOE 7 | . 2 5 . Classes Destroyed 7 | 2 4 . 1 Tunneler 1 | 1 . . . Hauler 1 | . 1 . . Recycler 2 | 1 1 . . Watcher 3 | . 3 . . Swarmer 15 | . 6 9 . Grunt 9 | . 7 2 . Subdweller 6 | . . . 6 Best Kill Streak 3 | 2 3 3 2 Combat Bots Only 3 | . 3 3 2 Max Kills in Single Turn 2 | 2 2 2 1 Gunslinging . | . . . . Exploded 2 | . 1 2 . Melee . | . . . . Uniques/NPCs Destroyed . | . . . . Combat | -11 -10 -10 -10 -------- Run | Yrd Mat Min Sub Hostile Shots Fired 120 | . 49 39 32 Missed 33 | . 14 10 9 Damage Taken 1182 | . 376 319 487 Core 260 | . 75 96 89 Absorbed by Shields . | . . . . Regen/Repaired (Parts) 154 | . 154 . . Core Remaining (%) 100 | 100 . . . Volleys Fired 132 | 5 51 27 49 Largest 2 | 2 2 2 2 Hottest 100 | 60 70 85 100 Shots Fired 234 | 10 100 44 80 Gun 209 | 10 96 40 63 Cannon . | . . . . Launcher 8 | . 4 4 . Special 17 | . . . 17 Kinetic 107 | 5 47 24 31 Thermal 118 | 4 49 16 49 Explosive 8 | . 4 4 . Electromagnetic 1 | 1 . . . Robot Hit Streak 13 | 4 9 10 13 Robot Miss Streak 4 | 2 4 2 1 Penetration Max . | . . . . Secondary Targets 3 | . 2 1 . Max Gunslinging Chain 1 | . 1 1 . Shots Hit Robots 146 | 6 59 30 51 Core Hits 68 | 4 34 15 15 Critical Kills 5 | . . 1 4 Critical Parts Destroyed 1 | . . 1 . Critical Strikes 7 | . . 2 5 Destroy 7 | . . 2 5 Melee Attacks . | . . . . Impact . | . . . . Slashing . | . . . . Piercing . | . . . . Sneak Attacks . | . . . . Combat Hostiles . | . . . . Follow-up Attacks . | . . . . Damage Inflicted 2334 | 72 703 573 986 Guns 1917 | 72 575 284 986 Cannons . | . . . . Explosions 405 | . 128 277 . Melee . | . . . . Ramming 12 | . . 12 . Kinetic 861 | 27 206 148 480 Thermal 1056 | 45 369 136 506 Explosive 405 | . 128 277 . Electromagnetic . | . . . . Impact . | . . . . Slashing . | . . . . Piercing . | . . . . Highest Corruption . | . . . . Average Corruption . | . . . . Corruption Purged . | . . . . Corruption Blocked . | . . . . Overload Shots . | . . . . Overflow Damage 42 | . . 42 . Projectiles . | . . . . Explosions 42 | . . 42 . Melee . | . . . . Knockbacks . | . . . . Impact . | . . . . Kinetic . | . . . . Secondary . | . . . . Self-Inflicted Damage 8 | . . 8 . Shots 1 | . . 1 . Rammed 4 | . . 4 . Targets Rammed 4 | . . 4 . Kicked . | . . . . Crushed . | . . . . Highest Temperature 367 | 40 189 367 20 Average Temperature 65 | 19 40 124 10 Received Heat Transfer 321 | . 129 96 96 Siege Activations . | . . . . Robots Corrupted . | . . . . Combat Hostiles . | . . . . Parts Fried . | . . . . Impact Corruptions . | . . . . Robots Melted . | . . . . Combat Hostiles . | . . . . Parts Melted 1 | . 1 . . Heat Transferred 2017 | 100 825 333 759 Parts Sabotaged . | . . . . Parts Stolen . | . . . . Parts Stripped . | . . . . Power Chain Reactions . | . . . . Alert | -11 -10 -10 -10 ------- Run | Yrd Mat Min Sub Peak Influence 171 | 10 143 171 . Initial 10 | . 6 10 . Average 33 | 6 36 31 . Maximum Alert Level . | . . . . Low Security (%) 100 | 100 100 100 . Level 1 . | . . . . Level 2 . | . . . . Level 3 . | . . . . Level 4 . | . . . . Level 5 . | . . . . High Security . | . . . . Max Security . | . . . . Squads Dispatched 1 | . 1 . . Investigation 1 | . 1 . . Extermination . | . . . . Reinforcement . | . . . . Assault . | . . . . Garrison . | . . . . Intercept . | . . . . Searches Triggered . | . . . . Construction Impeded . | . . . . Haulers Reinforced . | . . . . Active Scanning Responses . | . . . . Cargo Convoy Interrupts . | . . . . Stealth | -11 -10 -10 -10 --------- Run | Yrd Mat Min Sub Distress Signals 3 | . 3 . . Communications Jammed . | . . . . Distress Signals . | . . . . Times Spotted 58 | . 36 11 11 Peak Tracking Total 5 | . 5 3 3 Tactical Retreats 2 | . . . 2 Traps | -11 -10 -10 -10 ------- Run | Yrd Mat Min Sub Traps Triggered 2 | . 2 . . Indirectly . | . . . . Trap Hack Attempts . | . . . . Triggered . | . . . . Disarmed . | . . . . Reprogrammed . | . . . . Reused . | . . . . Traps Extracted . | . . . . Installed . | . . . . Triggered . | . . . . Machines | -11 -10 -10 -10 ---------- Run | Yrd Mat Min Sub Machines Disabled . | . . . . Max in Single Turn . | . . . . Machines Repaired . | . . . . Machines Dismantled . | . . . . Machines Sabotaged . | . . . . Overloaded Fab Kills . | . . . . Hacking | -11 -10 -10 -10 --------- Run | Yrd Mat Min Sub Machines Accessed 9 | . 8 . 1 Terminals 6 | . 6 . . Fabricators . | . . . . Repair Stations 1 | . 1 . . Recycling Units 1 | . 1 . . Scanalyzers . | . . . . Garrison Access . | . . . . Total Hacks 33 | . 29 . 4 Successful 23 | . 19 . 4 Failed 9 | . 9 . . Catastrophic . | . . . . Database Lockouts 1 | . 1 . . Manual 20 | . 20 . . Terminals 22 | . 22 . . Fabricators . | . . . . Repair Stations 5 | . 5 . . Recycling Units 2 | . 2 . . Scanalyzers . | . . . . Garrison Access . | . . . . Terminal Hacks 11 | . 7 . 4 Record 4 | . . . 4 Robot Analysis 2 | . 2 . . Branch Access Points 1 | . 1 . . Emergency Access Points 2 | . 2 . . Alert Level 1 | . 1 . . Locate Traps 1 | . 1 . . Fabricator Hacks . | . . . . Repair Station Hacks 4 | . 4 . . Scan Component 2 | . 2 . . Repair 2 | . 2 . . Recycling Unit Hacks . | . . . . Scanalyzer . | . . . . Garrison Access Hacks . | . . . . Unauthorized Hacks 8 | . 8 . . Terminals 6 | . 6 . . Botnet 6 | . 6 . . Fabricators . | . . . . Repair Stations . | . . . . Recycling Units 2 | . 2 . . Reject 1 | . 1 . . Mask 1 | . 1 . . Scanalyzers . | . . . . Garrison Access . | . . . . Data Cores Recovered . | . . . . Used . | . . . . Hacking Detections 8 | . 8 . . Full Trace Events . | . . . . Feedback Events . | . . . . Feedback Blocked . | . . . . Robot Schematics Acquired . | . . . . Robots Built . | . . . . Authchips . | . . . . Time . | . . . . Total Robot Build Rating . | . . . . Part Schematics Acquired . | . . . . Parts Built . | . . . . Authchips . | . . . . Time . | . . . . Total Part Build Rating . | . . . . Parts Repaired 2 | . 2 . . Time 52 | . 52 . . Parts Recycled . | . . . . Recycled Matter . | . . . . Retrieved Matter . | . . . . Retrieved Components . | . . . . Parts Scanalyzed . | . . . . Part Schematics Acquired . | . . . . Parts Damaged . | . . . . Bothacking | -11 -10 -10 -10 ------------ Run | Yrd Mat Min Sub Used RIF Installer . | . . . . Robots Hacked . | . . . . Non-combat . | . . . . Combat . | . . . . Robot Hacks Applied . | . . . . Relay Couplers Released . | . . . . Fabnet Peak Effective % . | . . . . Robots Rewired . | . . . . Allies Hacked . | . . . . Hacks Repelled . | . . . . Allies | -11 -10 -10 -10 -------- Run | Yrd Mat Min Sub Total Allies . | . . . . Largest Group . | . . . . Highest-Rated Group . | . . . . Highest-Rated Ally . | . . . . Total Orders . | . . . . Ally Attacks . | . . . . Total Damage . | . . . . Kills . | . . . . Allies Corrupted . | . . . . Allies Melted . | . . . . Intel | -11 -10 -10 -10 ------- Run | Yrd Mat Min Sub Robot Analysis Total 2 | . 2 . . Derelict Logs Recovered 2 | . . 1 1 Drone Launches . | . . . . Drone Recoveries . | . . . . Exploration | -11 -10 -10 -10 ------------- Run | Yrd Mat Min Sub Turns Passed 10385 | 52 2486 2153 5694 Spaces Moved 2694 | 25 897 631 1141 Core . | . . . . Treads 2670 | 1 897 631 1141 Legs 24 | 24 . . . Wheels . | . . . . Hover . | . . . . Flight . | . . . . Fastest Speed 120 | 120 160 320 320 Average Speed 291 | 121 239 320 320 Slowest Speed 320 | 160 320 320 320 Overloaded Moves . | . . . . Propulsion Burnouts . | . . . . Robots Hopped . | . . . . Cave-ins Triggered . | . . . . Exploration Rate (%) 65 | 3 99 99 61 Regions Visited 3 Branch Regions 2 Pre-discovered Areas . | . . . . Known Exits Taken 1 | . 1 . . Unknown Exits Taken 2 | 1 . 1 . Scrap Searched 1 | . . 1 . Spaces Dug 7 | . 7 . . Terrain Destroyed 45 | . 21 24 . Melee . | . . . . Projectile . | . . . . AOE 45 | . 21 24 . Terrain Rammed . | . . . . Walls Destroyed . | . . . . Machines Disabled . | . . . . Actions | -11 -10 -10 -10 --------- Run | Yrd Mat Min Sub Total 4974 | 38 1146 718 3072 Wait 2057 | . 164 44 1849 Move 2691 | 24 896 630 1141 Hop . | . . . . Pick Up 35 | 1 20 7 7 Fast Attach 5 | 1 4 . . Attach 5 | . 1 2 2 Detach . | . . . . Swap 25 | 3 6 3 13 Drop 20 | 4 4 1 11 Fire 132 | 5 51 27 49 Melee . | . . . . Ram . | . . . . Kick . | . . . . Crush 4 | . . 4 . Escape Stasis . | . . . . Rewire . | . . . . Trap . | . . . . Miscellaneous . | . . . . Route ------- -11/Scrapyard -10/Materials (discovered 5 exits: [*Mat x3] / *Min x2) -10/Mines (discovered 4 exits: [*Mat x2] / [*Exi] / *Sub) -10/Subcaves (discovered 2 exits: [*Mat x2]) History --------- Turn | Location | Event 1 | -11/Scrapyard | Discovered new exit (range 3) 53 | -11/Scrapyard | Entered Materials 265 | -10/Materials | Discovered new exit (range 7) 309 | -10/Materials | Build established: Mutant 502 | -10/Materials | Discovered new exit (range 14) 1001 | -10/Materials | Discovered new exit (range 11) 1199 | -10/Materials | Central database locked down 1199 | -10/Materials | Discovered new exit (range 16) 2043 | -10/Materials | Repaired Lgt. Treads 2070 | -10/Materials | Repaired Lgt. Treads 2110 | -10/Materials | Discovered new exit (range 4) 2358 | -10/Materials | Identified exit to Mines 2539 | -10/Materials | Entered Mines 2747 | -10/Mines | Deemed a non-threat by the Exiles lab entrance 2747 | -10/Mines | Discovered new exit (range 5) 3120 | -10/Mines | Found a damaged Exp. Sensor Array with a note attached 3152 | -10/Mines | Found Prototype Device 3271 | -10/Mines | Found a hidden stash of uninstalled traps 3958 | -10/Mines | Discovered new exit (range 10) 4096 | -10/Mines | Discovered new exit (range 6) 4170 | -10/Mines | Core integrity fell below 50% 4670 | -10/Mines | Discovered new exit (range 6) 4692 | -10/Mines | Entered Subcaves 5056 | -10/Subcaves | Ambushed by Subdweller buried in earth 5056 | -10/Subcaves | Ambushed by Subdweller buried in earth 5210 | -10/Subcaves | A swath of the cavern ceiling suddenly collapsed 5373 | -10/Subcaves | Discovered new exit (range 15) 7458 | -10/Subcaves | A swath of the cavern ceiling suddenly collapsed 9422 | -10/Subcaves | Learned Materials emergency access door positions 9425 | -10/Subcaves | Visited Clippyterm 9435 | -10/Subcaves | Learned Factory emergency access door positions 9844 | -10/Subcaves | Discovered new exit (range 5) 10382 | -10/Subcaves | Core integrity fell below 20% 10386 | -10/Subcaves | Destroyed by BD-QU3(R) with Subdweller Beam Cannon Last Messages --------------- 09754_ Acquired Disposable Heat Sink. 09759_ Subatomizers dissect the Sub. Monowheel. 09761_ 40-N1L(R) suffers critical hit (Destroy). 09761_ 40-N1L(R) destroyed. 09770_ Dropped Sml. Laser. 09771_ Acquired Sub. Laser. 09772_ Subatomizers dissect the Sub. Monowheel. 09775_ Dropped Ion Engine. 09776_ Acquired Sub. Power Source. 09784_ Subatomizers dissect the Sub. Monowheel. 09844_ EXIT=FOUND 09887_ Subatomizers dissect the Ion Engine. 09972_ Acquired 3 matter. 10357_ RV-SRK(R) destroyed. 10375_ Subatomizers dissect the Sub. Power Source. 10379_ Lgt. Treads destroyed. 10382_ Lgt. Armor Plating destroyed. 10384_ Y8-TTP(R) suffers critical hit (Destroy). 10384_ Destroyed Scrap Shield. 10386_ Lgt. Treads destroyed. Map ----- +----------------------------------------------------+ | ?????????????????????????????????????????????????? | | ?????????????????????????????????????????????????? | | ?????????????????????????????????????????????????? | | ?????????????????????????????????????????????????? | | ?????????????????????????????????????????????????? | | ?????????????????????????????????????????????????? | | ?????????????????????????????????????????????????? | | ?????????????????????????????????????????????????? | | ?????????????????????????????????????????????????? | | ?????????????????????????????????????????????????? | | ?????????????????????????????????????????????????? | | ????????????????????????????????######???????????? | | ????????????????????????????????# #???????????? | | ?????????????????????????????##### #???????????? | | ??????????????????? ?????????# ## #???????????? | | ????????????????????"????????# #???######### | | ??????????????????#?# ???????# ##### ## ## # | | ??????????????????# # ##?????## ## | | ??????????????????# " " #?????## | | ?????????????# ##?# ####### | | ??????????? ## ## #### | | ????????????????# #??# | | ????????????????# [ ##??## | | ???????????????# ##%!#### #????## | | ???????????????# ###R=### ### #????## | | ?????????????# ?#@ ### ### ##???## | | ???????????? ??## ## # #???## | | ???????????? #???# ## #??# | | ????????????? # ????# R ### #?## | | ????????????? ?# ## ?????# ##?### #?#### | | ???????????????#??# ?????# ##????? ###????# | | ??????????????????#??????# ##?????? #?????## | | ???????????????????????? #??????? ####?## | | ?????????????????????? #??????### ### | | ????????????????????? # #????????# | | ?????????????????????## # ????????# | | ??????????????????????#?### ##???????## | | ?????????????????????????? #?????????###### | | ?????????????????????????# ???????????????## | | ?????????????????????????# ??????????????## | | ??????????????????????????## ???????????????# | | ?????????????????????????????###???????????????# | | ???????????????????????????????????????????????# | | ???????????????????????????????????????????????## | | ????????????????????????????????????????????????# | | ????????????????????????????????????????????##### | | ???????????????????????????????????????????## | | ??????????????????????????????????????????## | | ??????????????????????????????????????????# | | ??????????????????????????????????????????## | +----------------------------------------------------+ Best States ------------- Heat Dissipation 25 Energy Generation 15 Energy Capacity 250 Matter Stores 300 Matter Capacity 300 Sight Range 16 Terrain Scan Range 16 Terrain Scan Density 10 Armor Coverage 150 Evasion (%) 55 Recoil Reduction 2 Item Schematics ----------------- None Robot Schematics ------------------ None Fabricated ------------ Nothing Alien Tech Used ----------------- None Achievements -------------- None Challenges ------------ None Game ------ Seed ChargeNetworkLeg Manual? 0 Play Time 00:29:55 Cumulative 107.0 hours Start 2024.09.18 @ 12:16:22 End 2024.09.18 @ 12:48:57 Sessions 1 Manual Loads 0 Difficulty Rogue Special Mode None Game No. 144 Rogue 144 Adventurer 0 Explorer 0 Win Type - Total 1 Types 1/0/0/0/0/0/0/0/0 Lore% 22 Gallery% 56 Achievement% 44 Wizard Run 0 Options --------- Layout 0 ASCII 0 Keyboard 0 Movement Mouse Keybinds 1 Fullscreen 1 Font 18/TerminusBold Map View 76x50 Zoom Use 0% Tactical HUD 1 Map Filters NONE Filters NONE Steam 1 RUN: 11b12458-734b-48f0-aa8b-99ff5cc61c0d